[Event "Norway Chess 2015 Blitz"]
[Site "Stavanger"]
[Date "2015.06.15"]
[Round "2"]
[White "Nakamura, Hikaru"]
[Black "Grischuk, Alexander"]
[Result "0-1"]
[ECO "A02"]
[WhiteElo "2883"]
[BlackElo "2839"]
[Annotator ""]
[PlyCount "102"]
[EventDate "2015.??.??"]
[EventCountry "NOR"]
[TimeControl "240+2"]

1. f4 {[%emt 0:00:59]} g6 {[%emt 0:01:07]} 2. e4 {[%emt 0:00:09]} d5 {[%emt 0:
00:04]} 3. e5 {[%emt 0:00:05]} c5 {[%emt 0:00:02]} 4. c3 {[%emt 0:00:05]} d4 {
[%emt 0:00:30]} 5. Bd3 {[%emt 0:00:10]} Nh6 {[%emt 0:00:03]} 6. Be4 {[%emt 0:
00:05]} Bg7 {[%emt 0:00:12]} 7. d3 {[%emt 0:00:22]} O-O {[%emt 0:00:04]} 8. Nf3
{[%emt 0:00:02]} Kh8 {[%emt 0:00:25]} 9. Qb3 {[%emt 0:00:33]} Nc6 {[%emt 0:00:
02]} 10. Bxc6 {[%emt 0:00:10]} bxc6 {[%emt 0:00:01]} 11. cxd4 {[%emt 0:00:06]}
cxd4 {[%emt 0:00:24]} 12. O-O {[%emt 0:00:14]} c5 {[%emt 0:00:03]} 13. Nbd2 {
[%emt 0:00:06]} Be6 {[%emt 0:00:07]} 14. Qc2 {[%emt 0:00:01]} Rc8 {[%emt 0:00:
02]} 15. b3 {[%emt 0:00:02]} Bd5 {[%emt 0:00:11]} 16. Ne4 {[%emt 0:00:01]} f5 {
[%emt 0:00:12]} 17. Neg5 {[%emt 0:00:23]} Nf7 {[%emt 0:00:16]} 18. Nxf7+ {
[%emt 0:00:11]} Rxf7 {[%emt 0:00:02]} 19. Ba3 {[%emt 0:00:03]} e6 {[%emt 0:00:
14]} 20. Rac1 {[%emt 0:00:05]} Rfc7 {[%emt 0:00:04]} 21. Nd2 {[%emt 0:00:01]}
g5 {[%emt 0:00:03]} 22. Nc4 {[%emt 0:00:01]} gxf4 {[%emt 0:00:09]} 23. Nd6 {
[%emt 0:00:13]} Bxe5 {[%emt 0:00:02]} 24. Nxc8 {[%emt 0:00:02]} Qxc8 {[%emt 0:
00:01]} 25. Bxc5 {[%emt 0:00:18]} Rg7 {[%emt 0:00:06]} 26. Rf2 {[%emt 0:00:01]}
f3 {[%emt 0:00:01]} 27. Bb4 {[%emt 0:00:11]} Qxc2 {[%emt 0:00:09]} 28. Rfxc2 {
[%emt 0:00:03]} h5 {[%emt 0:00:02]} 29. Re1 {[%emt 0:00:03]} Bf4 {[%emt 0:00:
02]} 30. Bc5 {[%emt 0:00:03]} e5 {[%emt 0:00:01]} 31. Bd6 {[%emt 0:00:06]} Kh7
{[%emt 0:00:12]} 32. Bxe5 {[%emt 0:00:02]} Re7 {[%emt 0:00:01]} 33. Kf2 {[%emt
0:00:05]} Be3+ {[%emt 0:00:06]} 34. Kg3 {[%emt 0:00:03]} Rxe5 {[%emt 0:00:03]}
35. gxf3 {[%emt 0:00:00]} f4+ {[%emt 0:00:01]} 36. Kh3 {[%emt 0:00:01]} Be6+ {
[%emt 0:00:01]} 37. Kg2 {[%emt 0:00:01]} Rg5+ {[%emt 0:00:01]} 38. Kh1 {[%emt
0:00:00]} Bd5 {[%emt 0:00:02]} 39. h4 {[%emt 0:00:01]} Bxf3+ {[%emt 0:00:01]}
40. Kh2 {[%emt 0:00:01]} Rg4 {[%emt 0:00:01]} 41. Kh3 {[%emt 0:00:00]} Rg3+ 42.
Kh2 Kg6 {[%emt 0:00:04]} 43. Rc5 {[%emt 0:00:03]} Rg2+ {[%emt 0:00:03]} 44. Kh3
{[%emt 0:00:00]} Rg3+ {[%emt 0:00:00]} 45. Kh2 {[%emt 0:00:01]} Rg4 {[%emt 0:
00:02]} 46. Kh3 {[%emt 0:00:03]} Bg2+ 47. Kh2 f3 {[%emt 0:00:03]} 48. Rc6+ {
[%emt 0:00:15]} Kf5 {[%emt 0:00:03]} 49. Rc5+ {[%emt 0:00:04]} Ke6 {[%emt 0:00:
05]} 50. Rxh5 {[%emt 0:00:01]} f2 {[%emt 0:00:01]} 51. Rc1 {[%emt 0:00:03]}
Bxc1 0-1

[Event "Norway Chess 2015 Blitz"]
[Site "Stavanger"]
[Date "2015.06.15"]
[Round "2"]
[White "Topalov, Veselin"]
[Black "Caruana, Fabiano"]
[Result "0-1"]
[ECO "A05"]
[WhiteElo "2641"]
[BlackElo "2679"]
[Annotator ""]
[PlyCount "100"]
[EventDate "2015.??.??"]
[EventCountry "NOR"]
[TimeControl "240+2"]

1. Nf3 {[%emt 0:01:00]} Nf6 {[%emt 0:00:59]} 2. g3 {[%emt 0:00:01]} g6 {[%emt
0:00:03]} 3. b4 {[%emt 0:00:01]} Bg7 {[%emt 0:00:02]} 4. Bb2 {[%emt 0:00:01]}
O-O {[%emt 0:00:03]} 5. Bg2 {[%emt 0:00:01]} d5 {[%emt 0:00:10]} 6. O-O {[%emt
0:00:04]} c6 {[%emt 0:00:01]} 7. d3 {[%emt 0:00:04]} a5 {[%emt 0:00:02]} 8. a3
{[%emt 0:00:04]} axb4 {[%emt 0:00:06]} 9. axb4 {[%emt 0:00:01]} Rxa1 {[%emt 0:
00:01]} 10. Bxa1 {[%emt 0:00:01]} Na6 {[%emt 0:00:10]} 11. c3 {[%emt 0:00:05]}
Re8 {[%emt 0:00:15]} 12. Nbd2 {[%emt 0:00:02]} e5 {[%emt 0:00:01]} 13. e4 {
[%emt 0:00:02]} Nc7 {[%emt 0:00:06]} 14. Qc2 {[%emt 0:00:07]} b5 {[%emt 0:00:
08]} 15. Re1 {[%emt 0:00:08]} Nd7 {[%emt 0:00:28]} 16. Nb3 {[%emt 0:00:18]} Nb6
{[%emt 0:00:08]} 17. Na5 {[%emt 0:00:06]} Qd6 {[%emt 0:00:10]} 18. Bb2 {[%emt
0:00:04]} h6 {[%emt 0:00:03]} 19. Bc1 {[%emt 0:00:04]} Na4 {[%emt 0:00:10]} 20.
Be3 {[%emt 0:00:16]} Ne6 {[%emt 0:00:08]} 21. Bd2 {[%emt 0:00:12]} Bd7 {[%emt
0:00:02]} 22. c4 {[%emt 0:00:05]} dxc4 {[%emt 0:00:03]} 23. dxc4 {[%emt 0:00:
01]} Nd4 {[%emt 0:00:05]} 24. Nxd4 {[%emt 0:00:04]} exd4 {[%emt 0:00:02]} 25.
Qb3 {[%emt 0:00:43]} Nc3 {[%emt 0:00:14]} 26. Nb7 {[%emt 0:00:06]} Qe7 {[%emt
0:00:16]} 27. Nc5 {[%emt 0:00:06]} Be6 {[%emt 0:00:02]} 28. Bf1 {[%emt 0:00:01]
} Ra8 {[%emt 0:00:06]} 29. e5 {[%emt 0:00:11]} Na4 {[%emt 0:00:08]} 30. Nxe6 {
[%emt 0:00:08]} Qxe6 {[%emt 0:00:01]} 31. Qc2 {[%emt 0:00:06]} Nc3 {[%emt 0:00:
12]} 32. Bxc3 {[%emt 0:00:04]} dxc3 {[%emt 0:00:01]} 33. Qxc3 {[%emt 0:00:02]}
Qe7 {[%emt 0:00:11]} 34. cxb5 {[%emt 0:00:05]} cxb5 {[%emt 0:00:00]} 35. Bxb5 {
[%emt 0:00:14]} Rb8 {[%emt 0:00:01]} 36. Qc4 {[%emt 0:00:03]} Bxe5 {[%emt 0:00:
06]} 37. Bc6 {[%emt 0:00:03]} Qf6 {[%emt 0:00:12]} 38. b5 {[%emt 0:00:04]} Bd4
{[%emt 0:00:03]} 39. Re2 {[%emt 0:00:02]} Rd8 {[%emt 0:00:02]} 40. Kg2 {[%emt
0:00:01]} Bb6 {[%emt 0:00:02]} 41. Bd5 {[%emt 0:00:05]} Kg7 {[%emt 0:00:01]}
42. h4 {[%emt 0:00:02]} h5 {[%emt 0:00:01]} 43. Qe4 {[%emt 0:00:06]} Rc8 {
[%emt 0:00:02]} 44. Ba2 {[%emt 0:00:04]} Rc5 {[%emt 0:00:03]} 45. Qd3 {[%emt 0:
00:01]} Rf5 {[%emt 0:00:02]} 46. f4 {[%emt 0:00:04]} Rc5 {[%emt 0:00:01]} 47.
Bc4 {[%emt 0:00:01]} Rc8 {[%emt 0:00:02]} 48. Re5 {[%emt 0:00:04]} Rd8 {[%emt
0:00:01]} 49. Rd5 {[%emt 0:00:04]} Qb2+ {[%emt 0:00:03]} 50. Kh3 {[%emt 0:00:
06]} Bg1 {[%emt 0:00:04]} 0-1

[Event "Norway Chess 2015 Blitz"]
[Site "Stavanger"]
[Date "2015.06.15"]
[Round "3"]
[White "Caruana, Fabiano"]
[Black "Carlsen, Magnus"]
[Result "1/2-1/2"]
[ECO "B01"]
[WhiteElo "2679"]
[BlackElo "2933"]
[Annotator ""]
[PlyCount "126"]
[EventDate "2015.??.??"]
[EventCountry "NOR"]
[TimeControl "240+2"]

1. e4 {[%emt 0:01:00]} d5 {[%emt 0:01:00]} 2. exd5 {[%emt 0:00:02]} Qxd5 {
[%emt 0:00:02]} 3. Nc3 {[%emt 0:00:01]} Qa5 {[%emt 0:00:01]} 4. Nf3 {[%emt 0:
00:04]} Nf6 {[%emt 0:00:03]} 5. d4 {[%emt 0:00:03]} c6 {[%emt 0:00:03]} 6. Bc4
{[%emt 0:00:02]} Bg4 {[%emt 0:00:16]} 7. h3 {[%emt 0:00:09]} Bxf3 {[%emt 0:00:
01]} 8. Qxf3 {[%emt 0:00:01]} e6 {[%emt 0:00:02]} 9. Bd2 {[%emt 0:00:05]} Qc7 {
[%emt 0:00:01]} 10. O-O-O {[%emt 0:00:05]} Nbd7 {[%emt 0:00:03]} 11. Ne4 {
[%emt 0:00:21]} Nxe4 {[%emt 0:00:04]} 12. Qxe4 {[%emt 0:00:01]} Bd6 {[%emt 0:
00:04]} 13. Kb1 {[%emt 0:00:12]} Nf6 {[%emt 0:00:03]} 14. Qf3 {[%emt 0:00:01]}
O-O {[%emt 0:00:21]} 15. Bd3 {[%emt 0:00:05]} a5 {[%emt 0:00:06]} 16. h4 {
[%emt 0:00:11]} Nd5 {[%emt 0:00:13]} 17. h5 {[%emt 0:00:27]} Rfd8 {[%emt 0:00:
20]} 18. Qe4 {[%emt 0:00:21]} Nf6 {[%emt 0:00:02]} 19. Qe2 {[%emt 0:00:01]} Bf4
{[%emt 0:00:06]} 20. Bxf4 {[%emt 0:00:13]} Qxf4 {[%emt 0:00:01]} 21. g3 {[%emt
0:00:01]} Qg5 {[%emt 0:00:08]} 22. c3 {[%emt 0:00:24]} h6 {[%emt 0:00:03]} 23.
Bc2 {[%emt 0:00:02]} Kf8 {[%emt 0:00:08]} 24. Rde1 {[%emt 0:00:02]} c5 {[%emt
0:00:07]} 25. dxc5 {[%emt 0:00:11]} Qxc5 {[%emt 0:00:01]} 26. Rd1 {[%emt 0:00:
08]} b5 {[%emt 0:00:08]} 27. Rxd8+ {[%emt 0:00:07]} Rxd8 {[%emt 0:00:01]} 28.
Rd1 {[%emt 0:00:05]} Rc8 {[%emt 0:00:00]} 29. a3 {[%emt 0:00:09]} Qxh5 {[%emt
0:00:14]} 30. Qxh5 {[%emt 0:00:01]} Nxh5 {[%emt 0:00:02]} 31. Rd7 {[%emt 0:00:
03]} b4 {[%emt 0:00:18]} 32. cxb4 {[%emt 0:00:02]} axb4 {[%emt 0:00:01]} 33.
axb4 {[%emt 0:00:06]} Nf6 {[%emt 0:00:01]} 34. Rb7 {[%emt 0:00:06]} Nd5 {[%emt
0:00:08]} 35. b5 {[%emt 0:00:01]} Nb4 {[%emt 0:00:02]} 36. Be4 {[%emt 0:00:04]}
Rc4 {[%emt 0:00:06]} 37. Bg2 {[%emt 0:00:07]} Rd4 {[%emt 0:00:07]} 38. Rc7 {
[%emt 0:00:04]} Rd1+ {[%emt 0:00:11]} 39. Rc1 {[%emt 0:00:01]} Rxc1+ {[%emt 0:
00:01]} 40. Kxc1 {[%emt 0:00:01]} Ke7 {[%emt 0:00:01]} 41. Kd2 {[%emt 0:00:03]}
Kd6 {[%emt 0:00:03]} 42. b6 {[%emt 0:00:01]} h5 {[%emt 0:00:16]} 43. f4 {[%emt
0:00:05]} f6 {[%emt 0:00:06]} 44. Kc3 {[%emt 0:00:01]} Nc6 {[%emt 0:00:01]} 45.
b7 {[%emt 0:00:02]} Nb8 {[%emt 0:00:01]} 46. Kd4 {[%emt 0:00:01]} Nd7 {[%emt 0:
00:03]} 47. b4 {[%emt 0:00:03]} Kc7 {[%emt 0:00:01]} 48. Bf3 {[%emt 0:00:03]}
g6 {[%emt 0:00:02]} 49. Be4 {[%emt 0:00:01]} g5 {[%emt 0:00:02]} 50. fxg5 {
[%emt 0:00:02]} fxg5 {[%emt 0:00:01]} 51. Bf3 {[%emt 0:00:02]} h4 {[%emt 0:00:
01]} 52. g4 {[%emt 0:00:03]} h3 {[%emt 0:00:01]} 53. b5 {[%emt 0:00:03]} h2 {
[%emt 0:00:02]} 54. Bh1 {[%emt 0:00:01]} Nf6 {[%emt 0:00:01]} 55. Ke5 {[%emt 0:
00:05]} Nxg4+ {[%emt 0:00:02]} 56. Kxe6 Nf2 {[%emt 0:00:12]} 57. Bg2 {[%emt 0:
00:01]} Nd1 {[%emt 0:00:07]} 58. Ke5 {[%emt 0:00:04]} Kb8 {[%emt 0:00:07]} 59.
Ke4 {[%emt 0:00:01]} Nf2+ {[%emt 0:00:04]} 60. Kf5 {[%emt 0:00:01]} h1=Q {
[%emt 0:00:02]} 61. Bxh1 {[%emt 0:00:01]} Nxh1 {[%emt 0:00:01]} 62. Kxg5 {
[%emt 0:00:01]} Kxb7 {[%emt 0:00:01]} 63. b6 {[%emt 0:00:00]} Kxb6 1/2-1/2

[Event "Norway Chess 2015 Blitz"]
[Site "Stavanger"]
[Date "2015.06.15"]
[Round "3"]
[White "Giri, Anish"]
[Black "Anand, Viswanathan"]
[Result "1-0"]
[ECO "C50"]
[WhiteElo "2771"]
[BlackElo "2767"]
[Annotator ""]
[PlyCount "51"]
[EventDate "2015.??.??"]
[EventCountry "NOR"]
[TimeControl "240+2"]

1. e4 {[%emt 0:00:59]} e5 {[%emt 0:00:59]} 2. Nf3 {[%emt 0:00:01]} Nc6 {[%emt
0:00:01]} 3. Bc4 {[%emt 0:00:00]} Bc5 {[%emt 0:00:01]} 4. d3 {[%emt 0:00:01]}
Nf6 {[%emt 0:00:01]} 5. O-O {[%emt 0:00:02]} d6 {[%emt 0:00:01]} 6. c3 {[%emt
0:00:01]} a6 {[%emt 0:00:03]} 7. Bb3 {[%emt 0:00:01]} O-O {[%emt 0:00:04]} 8.
Nbd2 {[%emt 0:00:03]} Be6 {[%emt 0:00:05]} 9. Bc2 {[%emt 0:00:03]} Ba7 {[%emt
0:00:09]} 10. h3 {[%emt 0:00:04]} Re8 {[%emt 0:00:19]} 11. Ng5 {[%emt 0:00:08]}
Bd7 {[%emt 0:00:01]} 12. Ngf3 {[%emt 0:00:21]} Be6 {[%emt 0:00:03]} 13. Re1 {
[%emt 0:00:01]} h6 {[%emt 0:00:02]} 14. Nf1 {[%emt 0:00:03]} d5 {[%emt 0:00:05]
} 15. exd5 {[%emt 0:00:02]} Bxd5 {[%emt 0:00:05]} 16. Ng3 {[%emt 0:00:07]} Qd7
{[%emt 0:00:11]} 17. Nh4 {[%emt 0:00:03]} Rad8 {[%emt 0:00:11]} 18. Nhf5 {
[%emt 0:00:21]} Kh8 {[%emt 0:01:01]} 19. d4 {[%emt 0:00:43]} exd4 {[%emt 0:00:
17]} 20. Nxg7 {[%emt 0:00:04]} Rxe1+ {[%emt 0:00:06]} 21. Qxe1 {[%emt 0:00:00]}
Kxg7 {[%emt 0:00:01]} 22. Bxh6+ {[%emt 0:00:17]} Kh8 {[%emt 0:00:01]} 23. Qd2 {
[%emt 0:00:11]} Rg8 {[%emt 0:00:17]} 24. Qf4 {[%emt 0:00:12]} Qd6 {[%emt 0:00:
14]} 25. Qh4 {[%emt 0:00:02]} Qxg3 {[%emt 0:00:02]} 26. fxg3 {[%emt 0:00:22]}
1-0

[Event "Norway Chess 2015 Blitz"]
[Site "Stavanger"]
[Date "2015.06.15"]
[Round "3"]
[White "Hammer, Jon Ludvig"]
[Black "Nakamura, Hikaru"]
[Result "0-1"]
[ECO "B52"]
[WhiteElo "2648"]
[BlackElo "2883"]
[Annotator ""]
[PlyCount "163"]
[EventDate "2015.??.??"]
[EventCountry "NOR"]
[TimeControl "240+2"]

1. e4 {[%emt 0:00:59]} c5 {[%emt 0:01:00]} 2. Nf3 {[%emt 0:00:01]} d6 {[%emt 0:
00:03]} 3. Bb5+ {[%emt 0:00:01]} Bd7 {[%emt 0:00:02]} 4. Bxd7+ {[%emt 0:00:02]}
Nxd7 {[%emt 0:00:02]} 5. O-O {[%emt 0:00:02]} Ngf6 {[%emt 0:00:02]} 6. Re1 {
[%emt 0:00:01]} e6 {[%emt 0:00:04]} 7. c4 {[%emt 0:00:02]} a6 {[%emt 0:00:26]}
8. d4 {[%emt 0:00:04]} cxd4 {[%emt 0:00:02]} 9. Nxd4 {[%emt 0:00:01]} Be7 {
[%emt 0:00:02]} 10. b3 {[%emt 0:00:02]} O-O {[%emt 0:00:08]} 11. Bb2 {[%emt 0:
00:01]} Re8 {[%emt 0:00:29]} 12. Nc3 {[%emt 0:00:01]} Bf8 {[%emt 0:00:01]} 13.
Qd2 {[%emt 0:00:01]} Rc8 {[%emt 0:00:02]} 14. Rad1 {[%emt 0:00:01]} Qc7 {[%emt
0:00:07]} 15. Nf3 {[%emt 0:00:02]} Qb8 {[%emt 0:00:05]} 16. h3 {[%emt 0:00:08]}
b5 {[%emt 0:00:04]} 17. cxb5 {[%emt 0:00:01]} axb5 {[%emt 0:00:01]} 18. Qd3 {
[%emt 0:00:03]} b4 {[%emt 0:00:03]} 19. Na4 {[%emt 0:00:01]} d5 {[%emt 0:00:13]
} 20. exd5 {[%emt 0:00:13]} Nxd5 {[%emt 0:00:02]} 21. Ng5 {[%emt 0:00:25]} N7f6
{[%emt 0:00:08]} 22. Ne4 {[%emt 0:00:17]} Nxe4 {[%emt 0:00:11]} 23. Qxe4 {
[%emt 0:00:02]} Qc7 {[%emt 0:00:16]} 24. g3 {[%emt 0:00:06]} Red8 {[%emt 0:00:
05]} 25. h4 {[%emt 0:00:05]} h6 {[%emt 0:00:24]} 26. Rc1 {[%emt 0:00:03]} Qd7 {
[%emt 0:00:01]} 27. Red1 {[%emt 0:00:03]} Rxc1 {[%emt 0:00:06]} 28. Rxc1 {
[%emt 0:00:01]} Rc8 {[%emt 0:00:01]} 29. Rc4 {[%emt 0:00:11]} Rd8 {[%emt 0:00:
03]} 30. Bd4 {[%emt 0:00:02]} Qb5 {[%emt 0:00:08]} 31. Nc5 {[%emt 0:00:17]}
Bxc5 {[%emt 0:00:09]} 32. Rxc5 {[%emt 0:00:13]} Qa6 {[%emt 0:00:09]} 33. Qg4 {
[%emt 0:00:04]} f6 {[%emt 0:00:01]} 34. Rc2 {[%emt 0:00:40]} e5 {[%emt 0:00:07]
} 35. Ba1 {[%emt 0:00:03]} Ne7 {[%emt 0:00:06]} 36. Rc7 {[%emt 0:00:12]} Qd6 {
[%emt 0:00:03]} 37. Rb7 {[%emt 0:00:06]} Qd1+ {[%emt 0:00:04]} 38. Qxd1 {[%emt
0:00:02]} Rxd1+ 39. Kg2 Nd5 {[%emt 0:00:01]} 40. Rb5 {[%emt 0:00:05]} Kf7 {
[%emt 0:00:06]} 41. Bb2 {[%emt 0:00:00]} Ke6 {[%emt 0:00:01]} 42. Rc5 {[%emt 0:
00:17]} Rd2 43. Bc1 Rxa2 {[%emt 0:00:01]} 44. Rc6+ {[%emt 0:00:02]} Kd7 {[%emt
0:00:01]} 45. Rc5 {[%emt 0:00:09]} Kd6 {[%emt 0:00:01]} 46. Rc8 {[%emt 0:00:01]
} h5 {[%emt 0:00:06]} 47. Kf3 {[%emt 0:00:04]} f5 {[%emt 0:00:02]} 48. Bg5 {
[%emt 0:00:01]} Ra3 {[%emt 0:00:01]} 49. Rd8+ {[%emt 0:00:02]} Kc6 {[%emt 0:00:
01]} 50. Rc8+ {[%emt 0:00:01]} Kb6 {[%emt 0:00:09]} 51. Bd8+ {[%emt 0:00:11]}
Kb7 {[%emt 0:00:02]} 52. Rc5 {[%emt 0:00:01]} Rxb3+ {[%emt 0:00:01]} 53. Kg2 {
[%emt 0:00:00]} Rd3 {[%emt 0:00:01]} 54. Ba5 {[%emt 0:00:08]} b3 {[%emt 0:00:
01]} 55. Kf1 {[%emt 0:00:04]} b2 {[%emt 0:00:03]} 56. Rb5+ {[%emt 0:00:00]} Ka6
57. Rxb2 {[%emt 0:00:01]} Kxa5 {[%emt 0:00:02]} 58. Rb7 {[%emt 0:00:01]} Rd1+ {
[%emt 0:00:05]} 59. Ke2 {[%emt 0:00:03]} Nc3+ {[%emt 0:00:01]} 60. Ke3 {[%emt
0:00:03]} g6 {[%emt 0:00:05]} 61. Rg7 {[%emt 0:00:05]} Rd6 {[%emt 0:00:01]} 62.
f3 {[%emt 0:00:01]} Kb5 {[%emt 0:00:01]} 63. g4 {[%emt 0:00:01]} Nd5+ {[%emt 0:
00:01]} 64. Kf2 {[%emt 0:00:01]} hxg4 {[%emt 0:00:02]} 65. fxg4 {[%emt 0:00:01]
} fxg4 {[%emt 0:00:01]} 66. Kg3 {[%emt 0:00:01]} Nf6 {[%emt 0:00:01]} 67. Re7 {
[%emt 0:00:04]} Rd3+ {[%emt 0:00:01]} 68. Kg2 {[%emt 0:00:01]} Kc4 {[%emt 0:00:
04]} 69. Rxe5 {[%emt 0:00:02]} Rd5 {[%emt 0:00:02]} 70. Re6 {[%emt 0:00:01]}
Rf5 {[%emt 0:00:01]} 71. Rd6 {[%emt 0:00:03]} Kc5 {[%emt 0:00:03]} 72. Rd2 {
[%emt 0:00:02]} Ne4 {[%emt 0:00:02]} 73. Rd8 {[%emt 0:00:02]} Rf2+ {[%emt 0:00:
01]} 74. Kg1 {[%emt 0:00:00]} g3 {[%emt 0:00:02]} 75. Rg8 {[%emt 0:00:02]} Rf6
{[%emt 0:00:02]} 76. Rd8 {[%emt 0:00:01]} Rd6 {[%emt 0:00:02]} 77. Re8 {[%emt
0:00:04]} Kd4 {[%emt 0:00:01]} 78. Kg2 {[%emt 0:00:00]} Ke3 {[%emt 0:00:01]}
79. Rf8 {[%emt 0:00:04]} Rd2+ {[%emt 0:00:01]} 80. Kg1 {[%emt 0:00:04]} Rh2 {
[%emt 0:00:02]} 81. Rg8 {[%emt 0:00:05]} Nd2 {[%emt 0:00:10]} 82. Re8+ {[%emt
0:00:06]} 0-1

[Event "Norway Chess 2015 Blitz"]
[Site "Stavanger"]
[Date "2015.06.15"]
[Round "3"]
[White "Vachier-Lagrave, Maxime"]
[Black "Aronian, Levon"]
[Result "1-0"]
[ECO "A06"]
[WhiteElo "2886"]
[BlackElo "2816"]
[Annotator ""]
[PlyCount "80"]
[EventDate "2015.??.??"]
[EventCountry "NOR"]
[TimeControl "240+2"]

1. Nf3 {[%emt 0:00:59]} d5 {[%emt 0:01:01]} 2. g3 {[%emt 0:00:02]} Nf6 {[%emt
0:00:02]} 3. Bg2 {[%emt 0:00:01]} e6 {[%emt 0:00:01]} 4. O-O {[%emt 0:00:05]}
Be7 {[%emt 0:00:02]} 5. d3 {[%emt 0:00:04]} O-O {[%emt 0:00:02]} 6. Nbd2 {
[%emt 0:00:04]} Nc6 {[%emt 0:00:02]} 7. e4 {[%emt 0:00:01]} dxe4 {[%emt 0:00:
02]} 8. dxe4 {[%emt 0:00:05]} e5 {[%emt 0:00:01]} 9. c3 {[%emt 0:00:07]} a5 {
[%emt 0:00:02]} 10. Qc2 {[%emt 0:00:04]} Be6 {[%emt 0:00:26]} 11. Rd1 {[%emt 0:
00:11]} Qc8 {[%emt 0:00:41]} 12. Nf1 {[%emt 0:00:17]} Bc5 {[%emt 0:00:05]} 13.
Be3 {[%emt 0:00:06]} Bxe3 {[%emt 0:00:13]} 14. Nxe3 {[%emt 0:00:01]} Rd8 {
[%emt 0:00:03]} 15. Ng5 {[%emt 0:00:12]} Rxd1+ {[%emt 0:00:17]} 16. Rxd1 {
[%emt 0:00:02]} Bg4 {[%emt 0:00:03]} 17. f3 {[%emt 0:00:25]} Bd7 {[%emt 0:00:
06]} 18. Qb3 {[%emt 0:00:01]} Qe8 {[%emt 0:00:56]} 19. Qxb7 {[%emt 0:00:23]} h6
{[%emt 0:00:17]} 20. Bh3 {[%emt 0:00:18]} Rd8 {[%emt 0:00:08]} 21. Bxd7 {[%emt
0:00:06]} Rxd7 {[%emt 0:00:01]} 22. Nh3 {[%emt 0:00:03]} Rxd1+ {[%emt 0:00:02]}
23. Nxd1 {[%emt 0:00:01]} Qd7 {[%emt 0:00:03]} 24. Nhf2 {[%emt 0:00:03]} Nd8 {
[%emt 0:00:02]} 25. Qa7 {[%emt 0:00:06]} Qd2 {[%emt 0:00:05]} 26. Qe3 {[%emt 0:
00:02]} Qd7 {[%emt 0:00:03]} 27. Qd3 {[%emt 0:00:02]} Qe7 {[%emt 0:00:01]} 28.
Ne3 {[%emt 0:00:02]} Ne6 {[%emt 0:00:02]} 29. Qb5 {[%emt 0:00:10]} Qd6 {[%emt
0:00:02]} 30. Nc4 Qd8 31. Kg2 {[%emt 0:00:17]} Nd7 {[%emt 0:00:02]} 32. Qxa5 {
[%emt 0:00:02]} Ndc5 {[%emt 0:00:02]} 33. Nxe5 {[%emt 0:00:15]} Qd2 {[%emt 0:
00:02]} 34. b4 {[%emt 0:00:01]} Qxc3 {[%emt 0:00:03]} 35. Qa8+ {[%emt 0:00:01]}
Nf8 {[%emt 0:00:05]} 36. bxc5 {[%emt 0:00:07]} Qxe5 {[%emt 0:00:01]} 37. a4 {
[%emt 0:00:09]} Qxc5 {[%emt 0:00:01]} 38. a5 {[%emt 0:00:01]} g6 {[%emt 0:00:
02]} 39. a6 {[%emt 0:00:00]} Kg7 {[%emt 0:00:05]} 40. a7 {[%emt 0:00:02]} Qa5 {
[%emt 0:00:03]} 1-0

[Event "Norway Chess 2015 Blitz"]
[Site "Stavanger"]
[Date "2015.06.15"]
[Round "4"]
[White "Anand, Viswanathan"]
[Black "Vachier-Lagrave, Maxime"]
[Result "1/2-1/2"]
[ECO "B35"]
[WhiteElo "2767"]
[BlackElo "2886"]
[Annotator ""]
[PlyCount "71"]
[EventDate "2015.??.??"]
[EventCountry "NOR"]
[TimeControl "180+2"]

1. e4 {[%emt 0:00:00]} c5 {[%emt 0:00:01]} 2. Nf3 {[%emt 0:00:00]} Nc6 {[%emt
0:00:02]} 3. Nc3 {[%emt 0:00:02]} g6 {[%emt 0:00:01]} 4. d4 {[%emt 0:00:01]}
cxd4 {[%emt 0:00:02]} 5. Nxd4 {[%emt 0:00:01]} Bg7 {[%emt 0:00:01]} 6. Be3 {
[%emt 0:00:01]} Nf6 {[%emt 0:00:01]} 7. Bc4 {[%emt 0:00:02]} Qa5 {[%emt 0:00:
02]} 8. O-O {[%emt 0:00:03]} O-O {[%emt 0:00:03]} 9. Bb3 {[%emt 0:00:02]} d6 {
[%emt 0:00:02]} 10. h3 {[%emt 0:00:02]} Bd7 {[%emt 0:00:03]} 11. f4 {[%emt 0:
00:01]} Nxd4 {[%emt 0:00:11]} 12. Bxd4 {[%emt 0:00:02]} Bc6 {[%emt 0:00:01]}
13. Qe1 {[%emt 0:00:15]} Qb4 {[%emt 0:00:35]} 14. Bxf6 {[%emt 0:01:01]} Bxf6 {
[%emt 0:00:02]} 15. Nd5 {[%emt 0:00:03]} Qc5+ {[%emt 0:00:03]} 16. Kh1 {[%emt
0:00:12]} Bxd5 {[%emt 0:00:02]} 17. Bxd5 {[%emt 0:00:01]} e6 {[%emt 0:00:03]}
18. Bb3 {[%emt 0:00:01]} Bxb2 {[%emt 0:00:02]} 19. Rd1 {[%emt 0:00:12]} Rfe8 {
[%emt 0:00:36]} 20. Qd2 {[%emt 0:00:12]} Rad8 {[%emt 0:00:15]} 21. f5 {[%emt 0:
00:01]} b5 {[%emt 0:00:29]} 22. Rf3 {[%emt 0:00:23]} Be5 {[%emt 0:00:25]} 23.
Qg5 {[%emt 0:00:11]} Bg7 {[%emt 0:00:22]} 24. Qg4 {[%emt 0:00:16]} Qe5 {[%emt
0:00:03]} 25. fxe6 {[%emt 0:00:07]} fxe6 {[%emt 0:00:01]} 26. c4 {[%emt 0:00:
04]} bxc4 {[%emt 0:00:03]} 27. Bxc4 {[%emt 0:00:01]} d5 {[%emt 0:00:07]} 28.
exd5 {[%emt 0:00:02]} exd5 {[%emt 0:00:01]} 29. Bb3 {[%emt 0:00:01]} Kh8 {
[%emt 0:00:01]} 30. Qa4 {[%emt 0:00:09]} Qc7 {[%emt 0:00:09]} 31. Bxd5 {[%emt
0:00:08]} Re5 {[%emt 0:00:01]} 32. Rff1 {[%emt 0:00:09]} h5 {[%emt 0:00:09]}
33. Bb3 {[%emt 0:00:03]} Rxd1 34. Rxd1 {[%emt 0:00:02]} Kh7 {[%emt 0:00:03]}
35. Qc4 {[%emt 0:00:03]} Qxc4 {[%emt 0:00:01]} 36. Bxc4 {[%emt 0:00:01]}
1/2-1/2